fUSD/lending_fUSD_20250523
["ID","MTS","AMOUNT","RATE_DAILY","PERIOD"]
[362132447,1748017873233,-420.0,0.00027671,4]
[362132448,1748017873242,-420.0,0.00027671,4]
[362132449,1748017873251,-420.0,0.00027671,4]
[362132450,1748017873261,-420.0,0.00027671,4]
[362132451,1748017873271,-420.0,0.00027671,4]
[362132452,1748017873280,-533.57,0.00027671,4]
[362132453,1748017873290,-293.5923829,0.00027671,4]
[362132454,1748017873299,-420.0,0.00027671,4]
[362132455,1748017873308,-224.938157,0.00027671,7]
[362132456,1748017873317,-266.67,0.00027671,4]
[362132457,1748017873327,-224.938157,0.00027671,7]
[362132458,1748017873337,-151.0,0.00027671,7]
[362132459,1748017873346,-420.0,0.00027671,4]
[362132460,1748017873358,-151.0,0.00027671,7]
[362132461,1748017873368,-546.61,0.00027671,4]
[362132462,1748017873378,-420.0,0.00027671,4]
[362132463,1748017873387,-151.0,0.00027671,7]
[362132464,1748017873397,-479.9,0.00027671,4]
[362132465,1748017873407,-151.0,0.00027671,7]
[362132466,1748017873417,-420.0,0.00027671,4]
[362132467,1748017873427,-420.0,0.00027671,4]
[362132468,1748017873436,-420.0,0.00027671,4]
[362132469,1748017873445,-420.0,0.00027671,4]
[362132470,1748017873455,-228.20229648,0.00027671,4]
[362132471,1748017873464,-428.77,0.00027671,4]
[362132472,1748017873473,-437.42,0.00027671,4]
[362132473,1748017873482,-420.0,0.00027671,4]
[362132474,1748017873491,-420.0,0.00027671,4]
[362132475,1748017873501,-420.0,0.00027671,4]
[362132476,1748017873511,-351.06745048,0.00027671,4]
[362132477,1748017873520,-420.0,0.00027671,4]
[362132478,1748017873530,-420.0,0.00027671,4]
[362132479,1748017873539,-420.0,0.00027671,4]
[362132480,1748017873549,-420.0,0.00027671,4]
[362132481,1748017873559,-420.0,0.00027671,4]
[362132482,1748017873568,-420.0,0.00027671,4]
[362132483,1748017873578,-420.0,0.00027671,4]
[362132484,1748017873587,-420.0,0.00027671,4]
[362132485,1748017873597,-420.0,0.00027671,4]
[362132486,1748017873609,-378.100035,0.00027671,4]
[362132487,1748017873619,-1714.356994,0.00027671,7]
[362132488,1748017873628,-420.0,0.00027671,4]
[362132489,1748017873638,-907.8,0.00027671,4]
[362132490,1748017873647,-211.48,0.00027671,4]
[362132491,1748017873657,-155.43,0.00027671,4]
[362132492,1748017873666,-21574.84,0.00027671,4]
[362132493,1748017873676,-420.0,0.00027671,4]
[362132494,1748017873686,-305.98,0.00027671,4]
[362132495,1748017873695,-423.57,0.00027671,4]
[362132496,1748017873704,-570.3,0.00027671,4]
[362132497,1748017873714,-420.0,0.00027671,4]
[362132498,1748017873723,-588.157561,0.00027671,7]
[362132499,1748017873733,-588.157561,0.00027671,7]
[362132500,1748017873743,-549.59,0.00027671,4]
[362132501,1748017873753,-1085.18,0.00027671,4]
[362132502,1748017873763,-421.86,0.00027671,4]
[362132503,1748017873772,-1986.7,0.00027671,4]
[362132504,1748017873782,-420.0,0.00027671,4]
[362132505,1748017873792,-165.67,0.00027671,4]
[362132506,1748017873802,-405.59,0.00027671,4]
[362132507,1748017873813,-420.0,0.00027671,4]
[362132508,1748017873823,-420.0,0.00027671,4]
[362132509,1748017873834,-420.0,0.00027671,4]
[362132510,1748017873844,-420.0,0.00027671,4]
[362132511,1748017873859,-420.0,0.00027671,4]
[362132512,1748017873874,-420.0,0.00027671,4]
[362132513,1748017873884,-979.56,0.00027671,4]
[362132514,1748017873894,-184.40550421,0.00027671,4]
[362132515,1748017873904,-420.0,0.00027671,4]
[362132516,1748017873914,-420.0,0.00027671,4]
[362132517,1748017873924,-601.723247,0.00027671,7]
[362132518,1748017873933,-601.723247,0.00027671,7]
[362132519,1748017873943,-395.08,0.00027671,4]
[362132520,1748017873952,-432.81,0.00027671,4]
[362132521,1748017873961,-420.0,0.00027671,4]
[362132522,1748017873971,-420.0,0.00027671,4]
[362132523,1748017873980,-420.0,0.00027671,4]
[362132524,1748017873990,-435.269596,0.00027671,7]
[362132525,1748017874000,-420.0,0.00027671,4]
[362132526,1748017874011,-512.07,0.00027671,4]
[362132527,1748017874020,-420.0,0.00027671,4]
[362132528,1748017874031,-435.269596,0.00027671,7]
[362132529,1748017874041,-182.6,0.00027671,4]
[362132530,1748017874051,-420.0,0.00027671,4]
[362132531,1748017874061,-210.36,0.00027671,4]
[362132532,1748017874071,-420.0,0.00027671,4]
[362132533,1748017874081,-420.0,0.00027671,4]
[362132534,1748017874090,-420.0,0.00027671,4]
[362132535,1748017874100,-420.0,0.00027671,4]
[362132536,1748017874114,-420.0,0.00027671,4]
[362132537,1748017874124,-420.0,0.00027671,4]
[362132538,1748017874134,-444.55,0.00027671,4]
[362132539,1748017874145,-420.0,0.00027671,4]
[362132540,1748017874155,-420.0,0.00027671,4]
[362132541,1748017874165,-420.0,0.00027671,4]
[362132542,1748017874175,-420.0,0.00027671,4]
[362132543,1748017874185,-420.0,0.00027671,4]
[362132544,1748017874196,-278.32177313,0.00027671,4]
[362132545,1748017876670,387.71147,7.945e-05,2]
[362132547,1748017983069,396.37320163,0.0001,2]
[362132548,1748018104963,150.0,1e-08,2]
[362132551,1748018265297,152.2,0.00013699,2]
[362132552,1748018706486,150.0,1e-08,2]
[362132553,1748018722316,-154.55454392,0.00018807,2]
[362132554,1748018731137,-7.51545608,0.00018807,2]
[362132555,1748018731159,-170.7393119,0.00019873,2]
[362132556,1748018731181,-84.95362874,0.00019887,2]
[362132557,1748018825144,-115.04637126,0.00019887,2]
[362132558,1748018825168,-207.7161,0.000199,2]
[362132559,1748018825193,-217.84,0.00019999,2]
[362132560,1748018825217,-1008.92952581,0.0002,5]
[362132562,1748019032032,-2001.0,0.00019,5]
[362132563,1748019032042,-350.66386429,0.00019181,2]
[362132564,1748019032052,-168.89191247,0.00020047,2]
[362132565,1748019032061,-200.0,0.00020288,2]
[362132566,1748019032071,-151.0,0.00020329,2]
[362132567,1748019032080,-151.0,0.00020356,2]
[362132568,1748019032090,-151.0,0.00020361,2]
[362132569,1748019032099,-151.0,0.00020366,2]
[362132570,1748019032109,-151.0,0.00020366,2]
[362132571,1748019032118,-1496.75,0.00020495,2]
[362132572,1748019032128,-190.41,0.00020532,2]
[362132573,1748019032138,-10557.28422324,0.00021262,2]
[362132574,1748019032194,-98.19441885,0.00021262,2]
[362132575,1748019032206,-141.78009291,0.00021262,2]
[362132576,1748019032215,-217.84,0.00021369,2]
[362132577,1748019032225,-1200.0,0.0002175,2]
[362132578,1748019032234,-200.0,0.0002186,2]
[362132579,1748019032243,-250.0,0.0002186,2]
[362132580,1748019032253,-152.2,0.00021918,2]
[362132581,1748019032263,-250.0,0.0002197,2]
[362132582,1748019032272,-250.0,0.00022082,2]
[362132583,1748019032282,-252.51,0.00022257,2]
[362132584,1748019032291,-300.0,0.0002237,2]
[362132586,1748019032300,-7751.1,0.00022396,2]
[362132587,1748019032310,-1000.0,0.00022422,2]
[362132589,1748019032319,-300.0,0.00022484,2]
[362132591,1748019032329,-217.84,0.00022739,2]
[362132593,1748019032338,-1445.00980266,0.00022759,2]
[362132602,1748019032422,-51.74019734,0.00022759,2]
[362132604,1748019032432,-594.5290303,0.000229,8]
[362132607,1748019032442,-8279.43562626,0.00022965,2]
[362132609,1748019032455,-3697.74886406,0.00022965,2]
[362132610,1748019032466,-476.23,0.00022965,2]
[362132611,1748019032476,-438.4853198,0.00022965,2]
[362132612,1748019032487,-516.08,0.00022965,2]
[362132613,1748019032499,-507.17232003,0.00022965,2]
[362132615,1748019032509,-637.76897716,0.00022965,2]
[362132617,1748019032520,-2768.71610866,0.00022965,2]
[362132619,1748019032533,-32182.55,0.00022966,2]
[362132621,1748019032542,-252.51,0.00023092,2]
[362132623,1748019032551,-168.89191247,0.00023162,2]
[362132625,1748019032560,-450.0,0.00023162,2]
[362132626,1748019032570,-201.08,0.00023236,2]
[362132628,1748019032579,-500.0,0.00023262,2]
[362132630,1748019032588,-363.96,0.00023508,2]
[362132633,1748019032597,-162.07,0.00023508,2]
[362132636,1748019032607,-594.5290302,0.0002359,9]
[362132639,1748019032617,-6136.05,0.00023685,2]
[362132642,1748019032626,-1680.0,0.00023752,2]
[362132645,1748019032635,-161.62,0.00023836,2]
[362132648,1748019032645,-22070.0920586,0.00023842,2]
[362132670,1748019037973,-241.0,0.00021261,2]
[362132671,1748019037984,-1829.9079414,0.00023842,2]
[362132672,1748019037993,-252.51,0.00023927,2]
[362132673,1748019038003,-150.0,0.00023971,7]
[362132674,1748019038012,-1214.77,0.00023985,2]
[362132675,1748019038022,-1242.02,0.0002407,2]
[362132676,1748019038032,-217.84,0.00024109,2]
[362132677,1748019038049,-250.0,0.00024183,2]
[362132678,1748019038059,-166.35,0.00024213,2]
[362132679,1748019038068,-745.63,0.00024255,2]
[362132680,1748019038077,-594.5290302,0.00024279,10]
[362132681,1748019038087,-200.0,0.00024299,2]
[362132682,1748019038096,-420.0,0.000243,2]
[362132683,1748019038107,-165.77,0.0002432,2]
[362132684,1748019038120,-3175.6730284,0.00024506,2]
[362132689,1748019038336,-1705.15247397,0.00024506,2]
[362132691,1748019038348,-6286.7785675,0.00024506,2]
[362132694,1748019038359,-365.2349616,0.00024506,2]
[362132696,1748019038371,-384.186,0.00024506,2]
[362132698,1748019038382,-6518.76414463,0.00024506,2]
[362132700,1748019038391,-614.40153433,0.00024506,4]
[362132702,1748019038401,-150.0,0.00024593,2]
[362132704,1748019038411,-1000.0,0.00024605,2]
[362132706,1748019038420,-176.10007422,0.00024605,2]
[362132708,1748019038430,-201.75946842,0.00024605,2]
[362132710,1748019038439,-500.0,0.00024605,2]
[362132712,1748019038448,-321.68442138,0.00024605,2]
[362132713,1748019038457,-455.6866418,0.00024605,2]
[362132715,1748019038466,-96775.36,0.00024606,2]
[362132717,1748019038476,-678.23,0.00024606,2]
[362132719,1748019038485,-1000.0,0.00024658,2]
[362132721,1748019038494,-500.0,0.00024673,2]
[362132723,1748019038504,-500.0,0.00024673,2]
[362132725,1748019038513,-507.04838419,0.00024673,2]
[362132727,1748019038522,-3868.45,0.00024675,2]
[362132729,1748019038532,-151.0,0.00024694,2]
[362132731,1748019038545,-1199.20597015,0.00024694,2]
[362132733,1748019038554,-207.4,0.00024694,2]
[362132735,1748019038564,-668.65185757,0.00024694,2]
[362132737,1748019038575,-668.65185757,0.00024694,2]
[362132739,1748019038584,-252.51,0.00024761,2]
[362132741,1748019038593,-200.0,0.00024829,2]
[362132743,1748019038603,-1500.0,0.00024829,2]
[362132745,1748019038612,-155.71774888,0.00024881,2]
[362132748,1748019038628,-1748.09225112,0.00024881,2]
[362132750,1748019038638,-206.0,0.00024946,2]
[362132752,1748019038647,-500.0,0.00024957,2]
[362132754,1748019038656,-594.5290302,0.00024969,12]
[362132755,1748019038665,-1000.0,0.00025,2]
[362132756,1748019038675,-1000.0,0.00025,3]
[362132757,1748019038683,-828.8898775,0.00025,4]
[362132758,1748019038692,-500.520092,0.00025,2]
[362132759,1748019038702,-500.0,0.00025,2]
[362132760,1748019038711,-507.64059035,0.00025,2]
[362132761,1748019038720,-499.73253223,0.00025,2]
[362132762,1748019038729,-500.0,0.00025,2]
[362132763,1748019038738,-300.0,0.00025,2]
[362132764,1748019038747,-502.55580347,0.00025,2]
[362132765,1748019038757,-1496.75,0.00025023,2]
[362132766,1748019038767,-18435.78917609,0.00025105,2]
[362132767,1748019038776,-1000.0,0.00025225,2]
[362132768,1748019038785,-693.3919763,0.00025242,2]
[362132769,1748019038794,-150.0,0.0002525,2]
[362132771,1748019038804,-500.0,0.00025447,7]
[362132773,1748019038814,-217.84,0.00025479,2]
[362132775,1748019038823,-252.51,0.00025596,2]
[362132777,1748019038833,-1260.33574723,0.00025639,4]
[362132779,1748019038842,-1260.33574723,0.00025639,4]
[362132781,1748019038851,-594.5290302,0.00025659,13]
[362132783,1748019038860,-18435.78917609,0.00025705,2]
[362132785,1748019038870,-1302.3,0.00025762,2]
[362132787,1748019038880,-1302.3,0.00025768,2]
[362132789,1748019038889,-1302.3,0.00025775,2]
[362132791,1748019038899,-1302.3,0.00025782,2]
[362132793,1748019038909,-1302.3,0.00025789,2]
[362132795,1748019038918,-826.06724196,0.0002579,2]
[362132797,1748019038927,-1302.3,0.00025795,2]
[362132799,1748019038936,-1302.3,0.00025802,2]
[362132801,1748019038946,-1302.3,0.00025809,2]
[362132803,1748019038955,-1302.3,0.00025816,2]
[362132805,1748019038964,-1302.3,0.00025822,2]
[362132807,1748019038974,-1302.3,0.00025829,2]
[362132809,1748019038983,-1302.3,0.00025836,2]
[362132811,1748019038993,-1302.3,0.00025843,2]
[362132813,1748019039002,-1302.3,0.00025849,2]
[362132815,1748019039011,-1302.3,0.00025856,2]
[362132817,1748019039021,-1302.3,0.00025863,2]
[362132819,1748019039030,-1302.3,0.0002587,2]
[362132820,1748019039040,-1302.3,0.00025877,2]
[362132822,1748019039049,-1302.3,0.00025883,2]
[362132824,1748019039059,-1302.3,0.0002589,2]
[362132826,1748019039068,-733.0,0.00025939,2]
[362132828,1748019039077,-156.587,0.00026063,2]
[362132830,1748019039087,-1295.03988982,0.00026063,2]
[362132832,1748019039096,-215.0738,0.00026063,2]
[362132834,1748019039105,-286.72989221,0.00026063,2]
[362132836,1748019039114,-500.0,0.00026269,7]
[362132838,1748019039123,-15120.2474988,0.00026294,3]
[362132840,1748019039132,-18435.78917609,0.00026304,2]
[362132842,1748019039141,-594.5290302,0.00026348,14]
[362132844,1748019039151,-182.29527471,0.0002638,2]
[362132846,1748019039161,-587.0,0.00026396,2]
[362132848,1748019039170,-936.0,0.0002648,2]
[362132850,1748019039180,-1310.0,0.0002648,2]
[362132852,1748019039189,-799.0,0.0002648,2]
[362132854,1748019039198,-631.0,0.0002648,2]
[362132856,1748019039208,-1151.0,0.0002648,2]
[362132858,1748019039216,-554.0,0.0002648,2]
[362132860,1748019039225,-1260.0,0.0002648,2]
[362132862,1748019039234,-921.0,0.0002648,2]
[362132864,1748019039244,-693.083,0.0002648,2]
[362132866,1748019039254,-1461.0,0.0002648,2]
[362132868,1748019039263,-154.0,0.0002648,2]
[362132870,1748019039273,-6838.0,0.0002648,2]
[362132872,1748019039282,-4052.0,0.0002648,2]
[362132874,1748019039291,-1010.134,0.0002648,2]
[362132876,1748019039301,-843.0,0.0002648,2]
[362132878,1748019039310,-600.0,0.00026543,7]
[362132880,1748019039319,-166.68,0.00026683,2]
[362132881,1748019039327,-1000.0,0.00026782,2]
[362132883,1748019039337,-1100.0,0.000268,9]
[362132885,1748019039346,-404.109358,0.00026839,4]
[362132887,1748019039356,-217.84,0.00026849,2]
[362132889,1748019039365,-430.71765574,0.00026869,2]
[362132891,1748019039375,-15120.2474988,0.00026872,3]
[362132893,1748019039384,-11983.91908112,0.00026893,3]
[362132896,1748019039398,-3136.32841768,0.00026893,3]
[362132898,1748019039407,-288.22203378,0.000269,9]
[362132900,1748019039418,-1564.82884631,0.000269,9]
[362132902,1748019039434,-346.94911991,0.000269,9]
[362132904,1748019039443,-18435.78917609,0.00026903,2]
[362132906,1748019039453,-557.41,0.00027,7]
[362132908,1748019039462,-1000.0,0.00027,2]
[362132910,1748019039471,-594.5290302,0.00027038,16]
[362132912,1748019039480,-500.0,0.00027091,7]
[362132914,1748019039490,-206.0,0.00027137,5]
[362132916,1748019039499,-1077.7353,0.00027175,2]
[362132918,1748019039508,-5000.0,0.00027184,2]
[362132920,1748019039517,-65023.69462627,0.00027265,3]
[362132979,1748019040078,-25697.79036623,0.00027265,3]
[362132981,1748019040088,-501.58492468,0.00027273,2]
[362132983,1748019040098,-1065.89594453,0.00027274,10]
[362132985,1748019040108,-211683.464982,0.00027274,3]
[362132987,1748019040119,-107557.25862937,0.00027274,3]
[362132990,1748019040131,-536.68541876,0.00027274,3]
[362132992,1748019040142,-749.23247774,0.00027274,3]
[362132994,1748019040156,-336.0581857,0.00027274,3]
[362133003,1748019040234,-32702.55482852,0.00027274,3]
[362133027,1748019040453,-77198.12573591,0.00027274,3]
[362133029,1748019040462,-585.81472298,0.00027274,2]
[362133030,1748019040471,-10780.39001779,0.00027285,2]
[362133033,1748019040483,-1087.85,0.00027285,2]
[362133035,1748019040495,-927.16287947,0.00027285,2]
[362133037,1748019040506,-1924.46966898,0.00027285,2]
[362133039,1748019040517,-249049.7626253,0.00027285,2]
[362133042,1748019040529,-822.14461619,0.00027285,2]
[362133044,1748019040543,-616.63521046,0.00027285,2]
[362133046,1748019040554,-203450.25387934,0.00027285,2]
[362133048,1748019040564,-168.58121527,0.00027287,2]
[362133050,1748019040575,-392.86340268,0.00027287,2]
[362133052,1748019040584,-1496.75,0.00027287,2]
[362133054,1748019040593,-1623.0,0.000273,2]
[362133056,1748019040603,-215.94,0.0002731,16]
[362133058,1748019040613,-2950.726,0.00027342,16]
[362133060,1748019040623,-9958.17796708,0.00027348,3]
[362133062,1748019040632,-9958.17796708,0.00027358,3]
[362133064,1748019040642,-600.0,0.00027365,7]
[362133066,1748019040653,-39832.7118683,0.00027367,3]
[362133068,1748019040663,-9958.17796708,0.00027368,3]
[362133070,1748019040672,-500.0,0.00027373,2]
[362133072,1748019040682,-300.0,0.00027373,2]
[362133074,1748019040691,-731.0,0.00027387,2]
[362133076,1748019040701,-59749.0678025,0.00027387,3]
[362133078,1748019040710,-150.93,0.00027387,2]
[362133081,1748019040720,-1080.64143,0.0002739,2]
[362133084,1748019040729,-150.0,0.00027396,2]
[362133086,1748019040738,-368.52390674,0.00027397,4]
[362133089,1748019040748,-368.278338,0.00027397,4]
[362133091,1748019040758,-424.92641608,0.00027397,4]
[362133093,1748019040768,-420.0,0.00027397,4]
[362133095,1748019040777,-500.0,0.00027397,4]
[362133097,1748019040786,-420.0,0.00027397,4]
[362133099,1748019040796,-280.71,0.00027397,4]
[362133101,1748019040805,-420.0,0.00027397,4]
[362133103,1748019040815,-420.0,0.00027397,4]
[362133105,1748019040824,-550.47,0.00027397,4]
[362133107,1748019040835,-420.0,0.00027397,4]
[362133109,1748019040845,-420.0,0.00027397,4]
[362133111,1748019040854,-420.0,0.00027397,4]
[362133113,1748019040865,-420.0,0.00027397,4]
[362133115,1748019040876,-420.0,0.00027397,4]
[362133117,1748019040885,-420.0,0.00027397,4]
[362133119,1748019040895,-420.0,0.00027397,4]
[362133121,1748019040906,-420.0,0.00027397,4]
[362133123,1748019040917,-255.16671196,0.00027397,4]
[362133125,1748019040927,-420.0,0.00027397,4]
[362133127,1748019040936,-420.0,0.00027397,4]
[362133129,1748019040946,-490.39,0.00027397,4]
[362133131,1748019040955,-421.46992684,0.00027397,4]
[362133133,1748019040965,-537.81,0.00027397,4]
[362133135,1748019040974,-420.0,0.00027397,4]
[362133137,1748019040983,-420.0,0.00027397,4]
[362133139,1748019040992,-421.30535571,0.00027397,4]
[362133141,1748019041002,-437.78305662,0.00027397,4]
[362133143,1748019041012,-428.93503008,0.00027397,4]
[362133145,1748019041021,-420.0,0.00027397,4]
[362133147,1748019041030,-422.15533331,0.00027397,4]
[362133149,1748019041040,-500.0,0.00027397,4]
[362133151,1748019041049,-500.0,0.00027397,4]
[362133153,1748019041059,-475.16725472,0.00027397,4]
[362133156,1748019041070,-420.0,0.00027397,4]
[362133157,1748019041079,-420.0,0.00027397,4]
[362133159,1748019041088,-420.0,0.00027397,4]
[362133161,1748019041098,-380.0,0.00027397,4]
[362133163,1748019041107,-420.0,0.00027397,4]
[362133165,1748019041117,-420.0,0.00027397,4]
[362133167,1748019041126,-420.0,0.00027397,4]
[362133169,1748019041135,-420.0,0.00027397,4]
[362133171,1748019041144,-420.0,0.00027397,4]
[362133173,1748019041154,-420.0,0.00027397,4]
[362133175,1748019041163,-532.87798991,0.00027397,4]
[362133177,1748019041172,-420.0,0.00027397,4]
[362133179,1748019041181,-1000.0,0.00027397,15]
[362133181,1748019041190,-763.15158187,0.00027397,15]
[362133183,1748019041199,-420.0,0.00027397,4]
[362133185,1748019041208,-420.0,0.00027397,4]
[362133187,1748019041218,-297.31,0.00027397,4]
[362133189,1748019041227,-420.0,0.00027397,4]
[362133191,1748019041237,-420.0,0.00027397,4]
[362133193,1748019041245,-420.0,0.00027397,4]
[362133195,1748019041255,-420.0,0.00027397,4]
[362133196,1748019041264,-420.0,0.00027397,4]
[362133199,1748019041275,-420.0,0.00027397,4]
[362133201,1748019041284,-500.0,0.00027397,2]
[362133203,1748019041293,-500.0,0.00027397,2]
[362133204,1748019041303,-420.0,0.00027397,4]
[362133206,1748019041312,-188.54526767,0.00027397,2]
[362133208,1748019041321,-420.0,0.00027397,4]
[362133210,1748019041330,-420.0,0.00027397,4]
[362133212,1748019041340,-420.0,0.00027397,4]
[362133214,1748019041349,-420.0,0.00027397,4]
[362133216,1748019041358,-420.0,0.00027397,4]
[362133218,1748019041367,-296.77498538,0.00027397,4]
[362133220,1748019041377,-529.89,0.00027397,4]
[362133222,1748019041389,-420.0,0.00027397,4]
[362133224,1748019041398,-415.91039464,0.00027397,4]
[362133226,1748019041410,-420.0,0.00027397,4]
[362133228,1748019041420,-420.0,0.00027397,2]
[362133230,1748019041430,-484.64,0.00027397,4]
[362133232,1748019041439,-190.03516705,0.00027397,4]
[362133234,1748019041448,-420.0,0.00027397,4]
[362133236,1748019041457,-420.0,0.00027397,4]
[362133238,1748019041467,-420.0,0.00027397,4]
[362133240,1748019041476,-420.0,0.00027397,4]
[362133242,1748019041485,-420.0,0.00027397,4]
[362133244,1748019041494,-420.0,0.00027397,4]
[362133246,1748019041504,-420.0,0.00027397,4]
[362133248,1748019041513,-420.0,0.00027397,4]
[362133250,1748019041522,-420.0,0.00027397,4]
[362133252,1748019041534,-196.43,0.00027397,4]
[362133254,1748019041545,-420.0,0.00027397,4]
[362133256,1748019041555,-420.0,0.00027397,4]
[362133258,1748019041564,-424.7719926,0.00027397,4]
[362133260,1748019041573,-420.0,0.00027397,4]
[362133262,1748019041584,-420.0,0.00027397,4]
[362133263,1748019041593,-420.0,0.00027397,4]
[362133264,1748019041602,-420.0,0.00027397,4]
[362133265,1748019041612,-1004.66687566,0.00027397,4]
[362133266,1748019041622,-420.0,0.00027397,4]
[362133267,1748019041631,-369.35059608,0.00027397,4]
[362133268,1748019041640,-507.74,0.00027397,4]
[362133269,1748019041650,-421.97234,0.00027397,4]
[362133270,1748019041661,-420.0,0.00027397,4]
[362133271,1748019041670,-420.0,0.00027397,4]
[362133272,1748019041679,-442.66,0.00027397,4]
[362133273,1748019041689,-422.73723831,0.00027397,4]
[362133275,1748019041698,-516.37,0.00027397,4]
[362133277,1748019041708,-421.32189667,0.00027397,4]
[362133279,1748019041718,-420.0,0.00027397,4]
[362133281,1748019041727,-262.8,0.00027397,4]
[362133283,1748019041736,-420.0,0.00027397,4]
[362133285,1748019041745,-420.0,0.00027397,4]
[362133287,1748019041754,-422.39298805,0.00027397,4]
[362133288,1748019041764,-420.0,0.00027397,4]
[362133289,1748019041773,-420.0,0.00027397,4]
[362133290,1748019041782,-489.72,0.00027397,4]
[362133291,1748019041791,-420.0,0.00027397,4]
[362133292,1748019041801,-420.0,0.00027397,4]
[362133293,1748019041811,-420.0,0.00027397,4]
[362133294,1748019041820,-420.0,0.00027397,4]
[362133295,1748019041829,-420.0,0.00027397,4]
[362133296,1748019041838,-425.68044165,0.00027397,4]
[362133298,1748019041847,-420.0,0.00027397,4]
[362133299,1748019041857,-420.0,0.00027397,4]
[362133300,1748019041867,-420.0,0.00027397,4]
[362133301,1748019041876,-420.0,0.00027397,4]
[362133302,1748019041886,-420.0,0.00027397,4]
[362133303,1748019041896,-420.0,0.00027397,4]
[362133304,1748019041907,-420.0,0.00027397,4]
[362133305,1748019041917,-420.0,0.00027397,4]
[362133306,1748019041927,-420.0,0.00027397,4]
[362133307,1748019041936,-420.0,0.00027397,4]
[362133308,1748019041946,-420.0,0.00027397,4]
[362133309,1748019041955,-420.0,0.00027397,4]
[362133310,1748019041964,-420.0,0.00027397,4]
[362133311,1748019041974,-420.0,0.00027397,4]
[362133312,1748019041984,-420.0,0.00027397,4]
[362133313,1748019041993,-420.0,0.00027397,4]
[362133314,1748019042003,-420.0,0.00027397,4]
[362133315,1748019042012,-420.0,0.00027397,4]
[362133316,1748019042023,-421.20448369,0.00027397,4]
[362133317,1748019042032,-420.0,0.00027397,4]
[362133318,1748019042042,-420.0,0.00027397,4]
[362133319,1748019042051,-420.0,0.00027397,4]
[362133320,1748019042061,-421.29666868,0.00027397,4]
[362133321,1748019042070,-420.0,0.00027397,4]
[362133322,1748019042080,-420.0,0.00027397,4]
[362133323,1748019042089,-248.41058513,0.00027397,4]
[362133324,1748019042098,-420.0,0.00027397,4]
[362133325,1748019042108,-421.78352228,0.00027397,4]
[362133326,1748019042118,-420.0,0.00027397,4]
[362133327,1748019042129,-511.66,0.00027397,4]
[362133328,1748019042138,-420.0,0.00027397,4]
[362133329,1748019042148,-420.0,0.00027397,4]
[362133330,1748019042159,-420.0,0.00027397,4]
[362133331,1748019042170,-400.80993688,0.00027397,4]
[362133332,1748019042179,-420.0,0.00027397,4]
[362133333,1748019042189,-420.0,0.00027397,4]
[362133334,1748019042199,-420.0,0.00027397,4]
[362133335,1748019042208,-422.53110369,0.00027397,4]
[362133336,1748019042217,-300.0,0.00027397,4]
[362133337,1748019042228,-420.0,0.00027397,4]
[362133338,1748019042237,-420.0,0.00027397,4]
[362133339,1748019042247,-420.0,0.00027397,4]
[362133340,1748019042256,-382.20349836,0.00027397,4]
[362133341,1748019042265,-420.0,0.00027397,4]
[362133342,1748019042275,-420.0,0.00027397,4]
[362133343,1748019042284,-370.3483187,0.00027397,4]